fUST/lending_fUST_20240803
["ID","MTS","AMOUNT","RATE_DAILY","PERIOD"]
[333977247,1722660640099,-721.27,0.00013698,2]
[333977248,1722660640109,-506.21082323,0.00013698,2]
[333977249,1722660640119,-500.0,0.00013698,2]
[333977250,1722660640128,-501.49036736,0.00013698,2]
[333977251,1722660640137,-500.0,0.00013698,2]
[333977252,1722660640147,-500.89833952,0.00013698,2]
[333977253,1722660640156,-509.93525858,0.00013698,2]
[333977254,1722660640165,-503.77144398,0.00013698,2]
[333977255,1722660640175,-501.99856816,0.00013698,2]
[333977256,1722660640184,-500.0,0.00013698,2]
[333977257,1722660640194,-500.0,0.00013698,2]
[333977258,1722660640203,-500.0,0.00013698,2]
[333977259,1722660640212,-502.39655978,0.00013698,2]
[333977260,1722660640221,-500.0,0.00013698,2]
[333977261,1722660640232,-500.0,0.00013698,2]
[333977262,1722660640241,-502.42230152,0.00013698,2]
[333977263,1722660640252,-504.39035449,0.00013698,2]
[333977264,1722660640262,-500.0,0.00013698,2]
[333977265,1722660640271,-287.84623116,0.00013698,2]
[333977266,1722660640281,-500.0,0.00013698,2]
[333977267,1722660640291,-500.0,0.00013698,2]
[333977268,1722660640300,-502.33360217,0.00013698,2]
[333977269,1722660640309,-503.33797836,0.00013698,2]
[333977270,1722660640318,-500.0,0.00013698,2]
[333977271,1722660640327,-500.0,0.00013698,2]
[333977272,1722660640337,-504.29784742,0.00013698,2]
[333977273,1722660640346,-504.27054651,0.00013698,2]
[333977274,1722660640356,-500.0,0.00013698,2]
[333977275,1722660640365,-500.0,0.00013698,2]
[333977276,1722660640374,-504.00307471,0.00013698,2]
[333977277,1722660640384,-506.72900474,0.00013698,2]
[333977278,1722660640393,-500.0,0.00013698,2]
[333977279,1722660640403,-500.0,0.00013698,2]
[333977280,1722660640412,-500.0,0.00013698,2]
[333977281,1722660640423,-501.20184379,0.00013698,2]
[333977282,1722660640431,-329.04185234,0.00013698,2]
[333977283,1722660640440,-500.0,0.00013698,2]
[333977284,1722660640449,-500.0,0.00013698,2]
[333977285,1722660640458,-447.4714438,0.00013698,2]
[333977286,1722660640467,-500.0,0.00013698,2]
[333977287,1722660640477,-500.0,0.00013698,2]
[333977288,1722660640487,-500.0,0.00013698,2]
[333977289,1722660640496,-500.0,0.00013698,2]
[333977290,1722660640505,-500.0,0.00013698,2]
[333977291,1722660640514,-504.66145901,0.00013698,2]
[333977292,1722660640523,-500.0,0.00013698,2]
[333977293,1722660640532,-510.95714034,0.00013698,2]
[333977294,1722660640541,-500.0,0.00013698,2]
[333977295,1722660640550,-500.0,0.00013698,2]
[333977296,1722660640559,-500.0,0.00013698,2]
[333977297,1722660640568,-501.13126224,0.00013698,2]
[333977298,1722660640578,-502.93646616,0.00013698,2]
[333977299,1722660640587,-500.0,0.00013698,2]
[333977300,1722660640597,-500.0,0.00013698,2]
[333977301,1722660640607,-500.0,0.00013698,2]
[333977302,1722660640616,-500.0,0.00013698,2]
[333977303,1722660640625,-500.0,0.00013698,2]
[333977304,1722660640635,-500.0,0.00013698,2]
[333977305,1722660640644,-500.0,0.00013698,2]
[333977306,1722660640653,-550.67717887,0.00013698,2]
[333977307,1722660640663,-500.0,0.00013698,2]
[333977308,1722660640672,-500.0,0.00013698,2]
[333977309,1722660640681,-506.99454715,0.00013698,2]
[333977310,1722660640690,-531.9133284,0.00013698,2]
[333977311,1722660640699,-500.0,0.00013698,2]
[333977312,1722660640709,-500.0,0.00013698,2]
[333977313,1722660640718,-501.10533179,0.00013698,2]
[333977314,1722660640727,-555.28703829,0.00013698,2]
[333977315,1722660640743,-500.0,0.00013698,2]
[333977316,1722660640756,-500.9047467,0.00013698,2]
[333977317,1722660640765,-500.0,0.00013698,2]
[333977318,1722660640776,-501.04256428,0.00013698,2]
[333977319,1722660640786,-500.0,0.00013698,2]
[333977320,1722660640796,-502.93711622,0.00013698,2]
[333977321,1722660640806,-502.11332486,0.00013698,2]
[333977322,1722660640815,-500.0,0.00013698,2]
[333977323,1722660640825,-253.39550413,0.00013698,2]
[333977324,1722660640836,-500.0,0.00013698,2]
[333977325,1722660640846,-500.0,0.00013698,2]
[333977326,1722660640855,-231.2118877,0.00013698,2]
[333977327,1722660640865,-506.66305378,0.00013698,2]
[333977328,1722660640874,-500.0,0.00013698,2]
[333977329,1722660640884,-507.25121903,0.00013698,2]
[333977330,1722660640893,-501.89706402,0.00013698,2]
[333977331,1722660640903,-502.21061574,0.00013698,2]
[333977332,1722660640912,-500.0,0.00013698,2]
[333977333,1722660640921,-500.0,0.00013698,2]
[333977334,1722660640931,-435.11155311,0.00013698,2]
[333977335,1722660640940,-500.0,0.00013698,2]
[333977336,1722660640949,-500.0,0.00013698,2]
[333977337,1722660640958,-447.8323181,0.00013698,2]
[333977338,1722660640967,-500.0,0.00013698,2]
[333977339,1722660640977,-500.0,0.00013698,2]
[333977340,1722660640988,-513.51614673,0.00013698,2]
[333977341,1722660640997,-500.0,0.00013698,2]
[333977342,1722660641007,-517.16,0.00013698,2]
[333977343,1722660641017,-507.71,0.00013698,2]
[333977344,1722660641027,-500.0,0.00013698,2]
[333977345,1722660641039,-500.0,0.00013698,2]
[333977346,1722660641051,-194.97135761,0.00013698,2]
[333977347,1722660641062,-503.34587047,0.00013698,2]
[333977348,1722660641073,-642.3,0.00013698,2]
[333977349,1722660641083,-272.78777853,0.00013698,2]
[333977350,1722660641096,-500.0,0.00013698,2]
[333977351,1722660641106,-503.67513818,0.00013698,2]
[333977352,1722660641116,-501.07944614,0.00013698,2]
[333977353,1722660641127,-500.0,0.00013698,2]
[333977354,1722660641137,-500.0,0.00013698,2]
[333977355,1722660641149,-502.67353918,0.00013698,2]
[333977356,1722660641158,-500.0,0.00013698,2]
[333977357,1722660641167,-502.83507767,0.00013698,2]
[333977358,1722660641177,-500.0,0.00013698,2]
[333977359,1722660641187,-500.0,0.00013698,2]
[333977360,1722660641196,-500.0,0.00013698,2]
[333977361,1722660641205,-500.0,0.00013698,2]
[333977362,1722660641214,-500.0,0.00013698,2]
[333977363,1722660641224,-500.0,0.00013698,2]
[333977364,1722660641235,-500.0,0.00013698,2]
[333977365,1722660641244,-251.11174031,0.00013698,2]
[333977366,1722660641253,-181.96181174,0.00013698,2]
[333977367,1722660641265,-200.14771428,0.00013698,2]
[333977368,1722660641276,-590.88360341,0.00013698,2]
[333977369,1722660641288,-223.70662768,0.00013698,2]
[333977370,1722660641299,-504.57109469,0.00013698,2]
[333977371,1722660641310,-500.0,0.00013698,2]
[333977372,1722660641321,-500.0,0.00013698,2]
[333977373,1722660641330,-500.0,0.00013698,2]
[333977374,1722660641341,-797.18,0.00013698,2]
[333977375,1722660641351,-502.62511725,0.00013698,2]
[333977376,1722660641362,-500.0,0.00013698,2]
[333977377,1722660641374,-506.11798183,0.00013698,2]
[333977378,1722660641385,-504.09025349,0.00013698,2]
[333977379,1722660641397,-500.0,0.00013698,2]
[333977380,1722660641408,-500.0,0.00013698,2]
[333977381,1722660641418,-500.0,0.00013698,2]
[333977382,1722660641429,-500.0,0.00013698,2]
[333977383,1722660641439,-500.0,0.00013698,2]
[333977384,1722660641450,-501.98761715,0.00013698,2]
[333977385,1722660641460,-501.37581479,0.00013698,2]
[333977386,1722660641470,-500.0,0.00013698,2]
[333977387,1722660641483,-500.0,0.00013698,2]
[333977388,1722660641492,-500.0,0.00013698,2]
[333977389,1722660641501,-500.0,0.00013698,2]
[333977390,1722660641510,-500.0,0.00013698,2]
[333977391,1722660641519,-500.0,0.00013698,2]
[333977392,1722660641528,-501.2042597,0.00013698,2]
[333977393,1722660641538,-500.0,0.00013698,2]
[333977394,1722660641548,-427.37261873,0.00013698,2]
[333977395,1722660641559,-500.0,0.00013698,2]
[333977396,1722660641569,-500.0,0.00013698,2]
[333977397,1722660641580,-500.0,0.00013698,2]
[333977398,1722660641591,-500.0,0.00013698,2]
[333977399,1722660641602,-412.27994082,0.00013698,2]
[333977400,1722660641612,-500.0,0.00013698,2]
[333977401,1722660641622,-643.13,0.00013698,2]
[333977402,1722660641632,-500.0,0.00013698,2]
[333977403,1722660641643,-500.0,0.00013698,2]
[333977404,1722660641654,-500.0,0.00013698,2]
[333977405,1722660641664,-500.0,0.00013698,2]
[333977406,1722660641675,-500.0,0.00013698,2]
[333977407,1722660641687,-500.0,0.00013698,2]
[333977408,1722660641699,-500.0,0.00013698,2]
[333977409,1722660641711,-190.21641263,0.00013698,2]
[333977410,1722660641721,-501.69740354,0.00013698,2]
[333977411,1722660641732,-837.47,0.00013698,2]
[333977412,1722660641744,-500.0,0.00013698,2]
[333977413,1722660641757,-500.0,0.00013698,2]
[333977414,1722660641768,-500.0,0.00013698,2]
[333977415,1722660641780,-502.05593954,0.00013698,2]
[333977416,1722660641790,-501.93729899,0.00013698,2]
[333977417,1722660641800,-500.0,0.00013698,2]
[333977418,1722660641809,-503.78223999,0.00013698,2]
[333977419,1722660641822,-505.18016825,0.00013698,2]
[333977420,1722660641833,-500.0,0.00013698,2]
[333977421,1722660641844,-503.27230899,0.00013698,2]
[333977422,1722660641856,-693.23,0.00013698,2]
[333977423,1722660641867,-503.75348764,0.00013698,2]
[333977424,1722660641877,-542.15017006,0.00013698,2]
[333977425,1722660641888,-1835.82,0.00013698,2]
[333977426,1722660641898,-500.0,0.00013698,2]
[333977427,1722660641908,-500.0,0.00013698,2]
[333977428,1722660641917,-500.0,0.00013698,2]
[333977429,1722660641927,-500.0,0.00013698,2]
[333977430,1722660641937,-467.35364598,0.00013698,2]
[333977431,1722660641946,-500.0,0.00013698,2]
[333977432,1722660641957,-500.0,0.00013698,2]
[333977433,1722660641967,-500.0,0.00013698,2]
[333977434,1722660641977,-500.0,0.00013698,2]
[333977435,1722660641994,-500.0,0.00013698,2]
[333977436,1722660642003,-502.13144408,0.00013698,2]
[333977437,1722660642012,-763.52,0.00013698,2]
[333977438,1722660642021,-538.82,0.00013698,2]
[333977439,1722660642030,-503.37012291,0.00013698,2]
[333977440,1722660642039,-500.0,0.00013698,2]
[333977441,1722660642048,-6580.96,0.00013698,2]
[333977442,1722660642058,-1258.2,0.00013698,2]
[333977443,1722660642067,-597.16655605,0.00013698,2]
[333977444,1722660642077,-995.53,0.00013698,2]
[333977445,1722660642087,-503.4325015,0.00013698,2]
[333977446,1722660642097,-500.0,0.00013698,2]
[333977447,1722660642107,-500.0,0.00013698,2]
[333977448,1722660642117,-500.0,0.00013698,2]
[333977449,1722660642126,-500.0,0.00013698,2]
[333977450,1722660642136,-2771.78,0.00013698,2]
[333977451,1722660642146,-507.82098782,0.00013698,2]
[333977452,1722660642156,-500.0,0.00013698,2]
[333977453,1722660642166,-500.0,0.00013698,2]
[333977455,1722660642254,-500.0,0.00013698,2]
[333977456,1722660642264,-500.0,0.00013698,2]
[333977457,1722660642275,-500.0,0.00013698,2]
[333977458,1722660642284,-443.54149847,0.00013698,2]
[333977460,1722660642294,-500.0,0.00013698,2]
[333977462,1722660642303,-507.1117221,0.00013698,2]
[333977463,1722660642312,-500.0,0.00013698,2]
[333977464,1722660642322,-697.17,0.00013698,2]
[333977465,1722660642331,-500.0,0.00013698,2]
[333977466,1722660642341,-506.92685903,0.00013698,2]
[333977467,1722660642351,-500.0,0.00013698,2]
[333977468,1722660642361,-500.0,0.00013698,2]
[333977469,1722660642370,-500.0,0.00013698,2]
[333977471,1722660642379,-1019.52,0.00013698,2]
[333977472,1722660642389,-508.92476227,0.00013698,2]
[333977473,1722660642398,-500.0,0.00013698,2]
[333977474,1722660642408,-5024.15,0.00013698,2]
[333977475,1722660642420,-3141.86,0.00013698,2]
[333977476,1722660642432,-512.2787417,0.00013698,2]
[333977477,1722660642442,-503.0087459,0.00013698,2]
[333977478,1722660642453,-500.0,0.00013698,2]
[333977479,1722660642463,-500.0,0.00013698,2]
[333977480,1722660642475,-500.0,0.00013698,2]
[333977481,1722660642486,-500.0,0.00013698,2]
[333977482,1722660642496,-503.9952865,0.00013698,2]
[333977483,1722660642504,-388.96379123,0.00013698,2]
[333977484,1722660642514,-500.0,0.00013698,2]
[333977485,1722660642523,-588.41,0.00013698,2]
[333977486,1722660642533,-820.68,0.00013698,2]
[333977487,1722660642542,-261.83585373,0.00013698,2]
[333977488,1722660642551,-500.0,0.00013698,2]
[333977489,1722660642560,-500.0,0.00013698,2]
[333977490,1722660642569,-500.0,0.00013698,2]
[333977491,1722660642578,-500.0,0.00013698,2]
[333977492,1722660642588,-500.0,0.00013698,2]
[333977493,1722660642597,-500.0,0.00013698,2]
[333977494,1722660642607,-500.0,0.00013698,2]
[333977495,1722660642617,-515.17605677,0.00013698,2]
[333977496,1722660642628,-683.1,0.00013698,2]
[333977498,1722660642639,-503.64487522,0.00013698,2]
[333977499,1722660642649,-512.01365044,0.00013698,2]
[333977500,1722660642659,-703.64,0.00013698,2]
[333977501,1722660642669,-500.0,0.00013698,2]
[333977502,1722660642681,-786.14,0.00013698,2]
[333977503,1722660642693,-500.0,0.00013698,2]
[333977504,1722660642704,-1618.62,0.00013698,2]
[333977505,1722660642714,-543.10242154,0.00013698,2]
[333977506,1722660642723,-808.52,0.00013698,2]
[333977507,1722660642734,-347.36219813,0.00013698,2]
[333977508,1722660642743,-656.29,0.00013698,2]
[333977509,1722660642756,-500.0,0.00013698,2]
[333977510,1722660642767,-500.0,0.00013698,2]
[333977511,1722660642778,-500.0,0.00013698,2]
[333977512,1722660642789,-559.54987504,0.00013698,2]
[333977513,1722660642799,-333.52226105,0.00013698,2]
[333977514,1722660642810,-1285.91,0.00013698,2]
[333977515,1722660642820,-500.0,0.00013698,2]
[333977516,1722660642832,-1135.56,0.00013698,2]
[333977517,1722660642844,-500.0,0.00013698,2]
[333977518,1722660642855,-500.0,0.00013698,2]
[333977519,1722660642866,-500.0,0.00013698,2]
[333977520,1722660642878,-500.0,0.00013698,2]
[333977521,1722660642888,-500.0,0.00013698,2]
[333977522,1722660642900,-1406.9,0.00013698,2]
[333977523,1722660642911,-505.28194984,0.00013698,2]
[333977524,1722660642921,-500.0,0.00013698,2]
[333977525,1722660642931,-500.0,0.00013698,2]
[333977526,1722660642942,-501.03865531,0.00013698,2]
[333977527,1722660642952,-500.80186033,0.00013698,2]
[333977528,1722660642962,-500.0,0.00013698,2]
[333977529,1722660642972,-503.01287378,0.00013698,2]
[333977530,1722660642982,-505.54746751,0.00013698,2]
[333977531,1722660642991,-380.17617847,0.00013698,2]
[333977532,1722660643001,-500.0,0.00013698,2]
[333977533,1722660643010,-743.6,0.00013698,2]
[333977534,1722660643020,-504.37788134,0.00013698,2]
[333977535,1722660643030,-500.0,0.00013698,2]
[333977536,1722660643039,-500.0,0.00013698,2]
[333977537,1722660643049,-500.0,0.00013698,2]
[333977538,1722660643059,-500.0,0.00013698,2]
[333977539,1722660643070,-500.0,0.00013698,2]
[333977540,1722660643082,-503.41638704,0.00013698,2]
[333977541,1722660643092,-500.0,0.00013698,2]
[333977542,1722660643104,-333.42318972,0.00013698,2]
[333977543,1722660643115,-500.0,0.00013698,2]
[333977544,1722660643126,-293.63777997,0.00013698,2]
[333977545,1722660643136,-1131.86,0.00013698,2]
[333977546,1722660643146,-500.0,0.00013698,2]
[333977547,1722660643157,-501.01393807,0.00013698,2]
[333977548,1722660643166,-500.0,0.00013698,2]
[333977549,1722660643176,-974.63,0.00013698,2]
[333977550,1722660643186,-500.0,0.00013698,2]
[333977551,1722660643195,-500.0,0.00013698,2]
[333977552,1722660643205,-501.02669427,0.00013698,2]
[333977553,1722660643215,-506.11215054,0.00013698,2]
[333977554,1722660643225,-506.96171622,0.00013698,2]
[333977555,1722660643236,-500.0,0.00013698,2]
[333977556,1722660643246,-500.0,0.00013698,2]
[333977557,1722660643256,-500.0,0.00013698,2]
[333977558,1722660643269,-500.0,0.00013698,2]
[333977559,1722660643280,-500.0,0.00013698,2]
[333977560,1722660643289,-500.0,0.00013698,2]
[333977561,1722660643299,-1985.02,0.00013698,2]
[333977562,1722660643309,-500.0,0.00013698,2]
[333977563,1722660643320,-500.0,0.00013698,2]
[333977564,1722660643331,-500.0,0.00013698,2]
[333977565,1722660643341,-500.0,0.00013698,2]
[333977566,1722660643353,-500.0,0.00013698,2]
[333977567,1722660643363,-500.0,0.00013698,2]
[333977568,1722660643374,-4948.72,0.00013698,2]
[333977569,1722660643385,-500.0,0.00013698,2]
[333977570,1722660643396,-500.0,0.00013698,2]
[333977571,1722660643408,-501.04584901,0.00013698,2]
[333977572,1722660643417,-501.81288566,0.00013698,2]
[333977573,1722660643427,-500.0,0.00013698,2]
[333977574,1722660643437,-500.0,0.00013698,2]
[333977575,1722660643448,-500.0,0.00013698,2]
[333977576,1722660643459,-518.87141673,0.00013698,2]
[333977577,1722660643468,-500.0,0.00013698,2]
[333977578,1722660643477,-1357.84,0.00013698,2]
[333977579,1722660643487,-500.0,0.00013698,2]
[333977580,1722660643496,-504.7353203,0.00013698,2]
[333977581,1722660643507,-500.0,0.00013698,2]
[333977582,1722660643516,-500.9424632,0.00013698,2]
[333977583,1722660643526,-501.12752463,0.00013698,2]
[333977584,1722660643535,-500.0,0.00013698,2]
[333977585,1722660643546,-500.0,0.00013698,2]
[333977586,1722660643558,-503.16626666,0.00013698,2]
[333977587,1722660643567,-620.15,0.00013698,2]
[333977588,1722660643578,-500.0,0.00013698,2]
[333977589,1722660643588,-500.0,0.00013698,2]
[333977590,1722660643600,-500.0,0.00013698,2]
[333977591,1722660643610,-500.0,0.00013698,2]
[333977592,1722660643620,-506.31900691,0.00013698,2]
[333977593,1722660643629,-447.2845941,0.00013698,2]
[333977594,1722660643639,-500.0,0.00013698,2]
[333977595,1722660643650,-605.39,0.00013698,2]
[333977596,1722660643660,-621.48,0.00013698,2]
[333977597,1722660643670,-500.0,0.00013698,2]
[333977598,1722660643681,-500.0,0.00013698,2]
[333977599,1722660643692,-500.0,0.00013698,2]
[333977600,1722660643702,-500.0,0.00013698,2]
[333977601,1722660643713,-270.14990032,0.00013698,2]
[333977602,1722660643723,-500.0,0.00013698,2]
[333977603,1722660643733,-1278.39,0.00013698,2]
[333977604,1722660643746,-686.17,0.00013698,2]
[333977605,1722660643758,-500.0,0.00013698,2]
[333977606,1722660643770,-1213.96,0.00013698,2]
[333977607,1722660643782,-218.23065649,0.00013699,2]
[333977608,1722660643795,-150.112233,0.000137,2]
[333977609,1722660643806,-420.0,0.00013734,2]
[333977610,1722660643817,-306.0,0.000138,2]
[333977611,1722660643830,-151.0,0.00013952,2]
[333977612,1722660643841,-151.0,0.00013952,2]
[333977613,1722660643852,-151.0,0.00013952,2]
[333977614,1722660643862,-151.0,0.00013952,2]
[333977615,1722660643872,-44926.0166835,0.00013952,2]
[333977616,1722660643882,-500.0,0.00013961,2]
[333977617,1722660643893,-500.0,0.00013961,2]
[333977618,1722660643904,-151.0,0.00013962,2]
[333977619,1722660643914,-151.0,0.00013962,2]
[333977620,1722660643923,-151.0,0.00013962,2]
[333977621,1722660643933,-268.298915,0.00013962,2]
[333977622,1722660643943,-151.0,0.00013962,2]
[333977623,1722660643953,-151.0,0.00013962,2]
[333977624,1722660643962,-151.0,0.00013962,2]
[333977625,1722660643972,-151.0,0.00013962,2]
[333977626,1722660643983,-151.0,0.00013962,2]
[333977627,1722660643992,-151.0,0.00013962,2]
[333977628,1722660644002,-151.0,0.00013962,2]
[333977629,1722660644012,-151.0,0.00013962,2]
[333977630,1722660644021,-240.803616,0.00013962,2]
[333977631,1722660644031,-240.803616,0.00013962,2]
[333977632,1722660644042,-284.545394,0.00013962,2]
[333977633,1722660644051,-284.545394,0.00013962,2]
[333977634,1722660644060,-272.54129,0.00013962,2]
[333977635,1722660644070,-440.334843,0.00013962,2]
[333977636,1722660644079,-440.334843,0.00013962,2]
[333977637,1722660644089,-151.0,0.00013962,2]
[333977639,1722660644099,-12751.34584533,0.00013962,2]
[333977641,1722660644338,-4527.75101451,0.00013962,2]
[333977642,1722660644355,-27646.91982366,0.00013962,2]
[333977643,1722660644365,-500.0,0.00013971,2]
[333977644,1722660644374,-275.80201505,0.00013971,2]
[333977645,1722660644384,-500.0,0.00013971,2]
[333977646,1722660644393,-500.0,0.00013971,2]
[333977647,1722660644403,-500.0,0.00013971,2]
[333977648,1722660644412,-500.0,0.00013971,2]
[333977649,1722660644421,-500.0,0.00013971,2]
[333977650,1722660644431,-500.0,0.00013971,2]
[333977651,1722660644441,-325.5629668,0.00013971,2]
[333977652,1722660644450,-500.0,0.00013971,2]
[333977653,1722660644460,-586.43,0.00013971,2]
[333977654,1722660644470,-586.43,0.00013971,2]
[333977655,1722660644479,-500.0,0.00013971,2]
[333977656,1722660644491,-500.0,0.00013971,2]
[333977657,1722660644501,-30151.97279412,0.00013972,5]
[333977658,1722660644510,-511.13325943,0.00013972,2]
[333977659,1722660644520,-500.0,0.00013972,2]
[333977660,1722660644530,-503.81223264,0.00013972,2]
[333977661,1722660644539,-721.27,0.00013972,2]
[333977662,1722660644549,-505.36998775,0.00013972,2]
[333977663,1722660644558,-508.41137282,0.00013972,2]
[333977664,1722660644567,-500.0,0.00013972,2]
[333977665,1722660644577,-415.56211433,0.00013972,2]
[333977666,1722660644587,-498.86377697,0.00013972,2]
[333977667,1722660644598,-507.54076707,0.00013972,2]
[333977668,1722660644609,-500.0,0.00013972,2]
[333977669,1722660644620,-511.21770539,0.00013972,2]
[333977670,1722660644632,-500.0,0.00013972,2]
[333977671,1722660644644,-504.58624465,0.00013972,2]
[333977672,1722660644654,-549.65774711,0.00013972,2]
[333977673,1722660644664,-500.0,0.00013972,2]
[333977674,1722660644675,-500.0,0.00013972,2]
[333977675,1722660644686,-500.79565286,0.00013972,2]
[333977676,1722660644697,-500.0,0.00013972,2]
[333977677,1722660644706,-573.80076268,0.00013972,2]
[333977678,1722660644718,-153.349181,0.00013972,2]
[333977679,1722660644728,-517.97581469,0.00013972,2]
[333977680,1722660644739,-505.37084216,0.00013972,2]
[333977681,1722660644752,-508.31599903,0.00013972,2]
[333977682,1722660644761,-500.0,0.00013972,2]
[333977683,1722660644771,-151.0,0.00013972,2]
[333977684,1722660644781,-505.29961228,0.00013972,2]
[333977685,1722660644791,-500.0,0.00013972,2]
[333977686,1722660644801,-505.4915161,0.00013972,2]
[333977687,1722660644811,-500.0,0.00013972,2]
[333977688,1722660644822,-504.85044734,0.00013972,2]
[333977689,1722660644833,-500.0,0.00013972,2]
[333977690,1722660644842,-626.33113328,0.00013972,2]
[333977691,1722660644853,-500.0,0.00013972,2]
[333977692,1722660644862,-500.0,0.00013972,2]
[333977693,1722660644874,-561.2558371,0.00013972,2]
[333977694,1722660644884,-503.07531237,0.00013972,2]
[333977695,1722660644895,-500.0,0.00013972,2]
[333977696,1722660644906,-500.0,0.00013972,2]
[333977697,1722660644917,-151.0,0.00013972,2]
[333977698,1722660644928,-500.0,0.00013972,2]
[333977699,1722660644937,-517.16,0.00013972,2]
[333977700,1722660644946,-507.71,0.00013972,2]
[333977701,1722660644956,-500.0,0.00013972,2]
[333977702,1722660644966,-642.3,0.00013972,2]
[333977703,1722660644976,-500.0,0.00013972,2]
[333977704,1722660644987,-507.81366039,0.00013972,2]
[333977705,1722660644996,-151.0,0.00013972,2]
[333977706,1722660645006,-500.0,0.00013972,2]
[333977707,1722660645015,-504.56243058,0.00013972,2]
[333977708,1722660645025,-500.0,0.00013972,2]
[333977709,1722660645035,-500.0,0.00013972,2]
[333977710,1722660645045,-607.06050163,0.00013972,2]
[333977711,1722660645054,-500.0,0.00013972,2]
[333977712,1722660645063,-797.18,0.00013972,2]
[333977713,1722660645074,-509.7765928,0.00013972,2]
[333977714,1722660645084,-502.17683024,0.00013972,2]
[333977715,1722660645093,-500.0,0.00013972,2]
[333977716,1722660645102,-500.0,0.00013972,2]
[333977717,1722660645112,-500.0,0.00013972,2]
[333977718,1722660645122,-500.0,0.00013972,2]
[333977719,1722660645132,-500.80859553,0.00013972,2]
[333977720,1722660645141,-500.0,0.00013972,2]
[333977721,1722660645151,-501.59894841,0.00013972,2]
[333977722,1722660645162,-500.0,0.00013972,2]
[333977723,1722660645174,-643.13,0.00013972,2]
[333977724,1722660645183,-151.0,0.00013972,2]
[333977725,1722660645192,-298.912198,0.00013972,2]
[333977726,1722660645201,-500.0,0.00013972,2]
[333977727,1722660645211,-500.0,0.00013972,2]
[333977728,1722660645220,-503.91147168,0.00013972,2]
[333977729,1722660645229,-837.47,0.00013972,2]
[333977730,1722660645243,-500.0,0.00013972,2]
[333977731,1722660645253,-693.23,0.00013972,2]
[333977732,1722660645263,-1835.82,0.00013972,2]
[333977733,1722660645274,-500.0,0.00013972,2]
[333977734,1722660645283,-506.09517705,0.00013972,2]
[333977735,1722660645292,-326.19178292,0.00013972,2]
[333977736,1722660645301,-500.0,0.00013972,2]
[333977737,1722660645312,-500.0,0.00013972,2]
[333977738,1722660645322,-245.342287,0.00013972,2]
[333977739,1722660645331,-500.0,0.00013972,2]
[333977740,1722660645342,-505.14941585,0.00013972,2]
[333977741,1722660645352,-500.0,0.00013972,2]
[333977742,1722660645361,-763.52,0.00013972,2]
[333977743,1722660645372,-538.82,0.00013972,2]
[333977744,1722660645383,-263.12919659,0.00013972,2]
[333977745,1722660645392,-6580.96,0.00013972,2]
[333977747,1722660645402,-1258.2,0.00013972,2]
[333977749,1722660645412,-995.53,0.00013972,2]
[333977750,1722660645421,-521.99648805,0.00013972,2]
[333977751,1722660645433,-500.0,0.00013972,2]
[333977752,1722660645443,-2771.78,0.00013972,2]
[333977753,1722660645454,-511.29375438,0.00013972,2]
[333977754,1722660645465,-500.0,0.00013972,2]
[333977755,1722660645476,-503.30205147,0.00013972,2]